[Event "27th OIBM 2024"]
[Site "Gmund am Tegernsee"]
[Date "2024.10.27"]
[Round "2.5"]
[White "Jumabayev, Rinat"]
[Black "Bosselmann, Tom Linus"]
[Result "1-0"]
[ECO "A13"]
[WhiteElo "2577"]
[BlackElo "2182"]
[Annotator "TA"]
[PlyCount "129"]
[EventDate "2024.09.16"]
[EventType "swiss"]
[EventCountry "GER"]
[SourceTitle "playchess.com"]
[Source "ChessBase"]
[SourceQuality "1"]
[TimeControl "40/5400+30:1800+30"]

{[%evp 26,129,-12,-14,29,0,-10,-10,-16,-19,-13,-49,-48,-66,-23,-37,0,0,0,0,0,0,57,71,157,120,158,154,162,155,151,162,157,69,53,50,63,50,43,39,80,77,86,55,83,89,112,100,97,99,118,122,120,124,122,117,131,127,139,136,131,140,139,145,141,145,256,259,262,262,269,269,280,280,324,270,394,392,387,358,415,402,415,387,393,399,378,375,652,640,521,373,818,782,772,763,916,992,1409,1624,29983,29980,29984,29985,29986,29987]} 1. Nf3 {[%emt 0:00:02]} Nf6 {[%emt 0:00:06]} 2. c4 {[%emt 0:00:04]} e6 {[%emt 0:00:15]} 3. g3 {[%emt 0:00:08]} d5 {[%emt 0:00:07]} 4. Bg2 {[%emt 0:00:22]} d4 {[%emt 0:00:12]} 5. O-O {[%emt 0:00:12]} c5 {[%emt 0:00:08]} 6. e3 {[%emt 0:00:23]} Nc6 {[%emt 0:00:10]} 7. exd4 {[%emt 0:00:11]} cxd4 {[%emt 0:00:09]} 8. d3 {[%emt 0:00:06]} Bd6 {[%emt 0:00:45] A13: English Opening: 1...e6.} 9. Na3 {[%emt 0:01:05]} e5 {[%emt 0:06:28]} 10. Re1 {[%emt 0:07:25]} O-O {[%emt 0:06:15]} 11. c5 {[%emt 0:01:15]} Bc7 {[%emt 0:05:06]} 12. Nc4 {[%emt 0:03:12]} Nd7 {[%emt 0:08:12]} 13. b4 {[%emt 0:16:19]} Nxb4 {[%emt 0:06:58]} 14. Bg5 $146 {[%emt 0:02:04]} ({Predecessor:} 14. Nfxe5 Nxe5 15. Nxe5 Re8 16. Qb3 Rxe5 17. Rxe5 Bxe5 18. Qxb4 Rb8 19. f4 Bf6 20. c6 {½-½ Paczuski,T (1996)-Borkowski,A (1775) Mazowiec-chT op 0910 2009 (8.9)}) 14... Qe8 {[%emt 0:17:09]} (14... f6 {is interesting.} 15. Qb3 Nxc5 16. Qxb4 Nxd3 17. Qb3 Nxe1 18. Ncxe5+ Kh8) 15. Nd6 {[%emt 0:01:12]} (15. Ncxe5 $5 Nxe5 16. Nxe5 Bxe5 17. Bf4 $14) 15... Bxd6 {[%emt 0:01:24]} 16. cxd6 {[%emt 0:00:09]} Nc6 $1 {[%emt 0:04:33]} 17. Qb3 {[%emt 0:09:06]} Kh8 {[%emt 0:07:36]} 18. a4 {[%emt 0:14:19]} f6 {[%emt 0:00:55]} 19. Bc1 {[%emt 0:00:06]} Nb6 {[%emt 0:05:27]} 20. Nd2 {[%emt 0:02:19]} Be6 {[%emt 0:00:58]} 21. Qb5 $1 {[%emt 0:00:06]} Nd8 {[%emt 0:03:44]} 22. Qxe8 $1 {[%emt 0:02:20]} Rxe8 {[%emt 0:00:02]} 23. a5 {[%emt 0:01:33]} Nd5 {[%emt 0:02:08]} (23... Nd7 $1 $11) 24. Ba3 $14 {[%emt 0:09:01]} Nc6 {[%emt 0:03:10]} (24... h6 $142) 25. Rab1 {[%emt 0:03:17]} Rab8 {[%emt 0:05:27]} (25... Nxa5 $2 26. Rb5 $18) 26. d7 {[%emt 0:18:10]} Red8 {[%emt 0:00:21]} 27. Bd6 {[%emt 0:00:08]} Ra8 {[%emt 0:00:55]} 28. Rxb7 {[%emt 0:00:11]} Nxa5 {[%emt 0:00:32] [#]} 29. Rb5 {[%emt 0:00:13]} (29. Bxd5 $1 $16 Bxd5 30. Rc7 (30. Rb5 Rxd7 31. f4 Nb3 $17)) 29... Rxd7 $14 {[%emt 0:00:09]} 30. Bxe5 $1 {[%emt 0:00:16]} ({Of course not} 30. Bxd5 Bxd5 31. Rxd5 Nb7 $11) 30... Nc6 {[%emt 0:01:29]} 31. Bxf6 $1 {[%emt 0:00:06]} Bf7 {[%emt 0:01:52]} 32. Be5 {[%emt 0:03:43]} Nxe5 {[%emt 0:01:29]} 33. Rxe5 {[%emt 0:00:19]} Rad8 {[%emt 0:00:05]} 34. Nf3 {[%emt 0:05:06]} Nc3 {[%emt 0:00:36]} 35. Ra5 {[%emt 0:01:45]} Bg6 {[%emt 0:01:02]} 36. Bf1 {[%emt 0:01:30]} h6 {[%emt 0:01:50]} 37. Re1 {[%emt 0:00:10]} Rb7 {[%emt 0:03:00]} 38. Rea1 {[%emt 0:00:45]} Nb5 {[%emt 0:00:46]} 39. Ne5 {[%emt 0:00:23]} Be8 {[%emt 0:00:32]} 40. h4 {[%emt 0:00:38]} Rb6 {[%emt 0:02:13]} 41. Bh3 {[%emt 0:03:32]} Ra8 {[%emt 0:05:44]} 42. Bd7 {[%emt 0:10:52]} Bxd7 {[%emt 0:03:29]} 43. Nxd7 {[%emt 0:00:09]} Rb7 {[%emt 0:00:36]} 44. Ne5 {[%emt 0:00:07]} Rb6 {[%emt 0:04:17]} 45. h5 {[%emt 0:00:12]} a6 {[%emt 0:02:07] [#]} (45... Kh7 $16 {might work better.} 46. Nc4 Rb7) 46. Nc4 $1 $18 {[%emt 0:02:04]} Rbb8 {[%emt 0:01:55]} 47. Rxa6 {[%emt 0:00:10]} Rxa6 {[%emt 0:00:05]} 48. Rxa6 {[%emt 0:00:04]} Nc3 {[%emt 0:02:04]} 49. Ne5 {[%emt 0:00:47]} Re8 {[%emt 0:01:27]} 50. f4 {[%emt 0:00:19]} Nd5 {[%emt 0:01:30]} (50... Kh7 $142 51. Kg2 Nb5) 51. Rd6 $18 {[%emt 0:01:40]} Nf6 {[%emt 0:02:13]} 52. g4 {[%emt 0:00:09]} (52. Rxd4 Nxh5 53. Kf2 Nf6 $14) 52... Kg8 {[%emt 0:00:17]} 53. Rxd4 {[%emt 0:00:18]} Ra8 {[%emt 0:00:10]} 54. Kf2 {[%emt 0:00:10]} Rc8 {[%emt 0:00:34]} 55. Kf3 {[%emt 0:00:06]} Ra8 {[%emt 0:00:08]} 56. Rd6 {[%emt 0:00:26]} Re8 $2 {[%emt 0:00:21]} (56... Kf8 57. g5 Nxh5) 57. Nd7 $18 {[%emt 0:01:03]} Nh7 {[%emt 0:00:18]} 58. Nc5 {[%emt 0:00:12]} Nf6 $2 {[%emt 0:00:12]} (58... Kf7 59. d4 Kg8) 59. Ne4 $18 {[%emt 0:00:07]} Nh7 {[%emt 0:00:16]} 60. d4 {[%emt 0:01:59]} Ra8 {[%emt 0:00:16]} 61. g5 {[%emt 0:02:57]} hxg5 {[%emt 0:02:22]} 62. fxg5 {[%emt 0:00:07]} Ra1 {[%emt 0:01:01]} 63. g6 {[%emt 0:01:04]} Nf8 {[%emt 0:00:09]} 64. Rd8 {[%emt 0:00:22]} Rh1 {[%emt 0:00:23]} 65. Ng3 {[%emt 0:00:17]} 1-0

[Event "27th OIBM 2024"]
[Site "Gmund am Tegernsee"]
[Date "2024.10.27"]
[Round "2.6"]
[White "Geher, Koppany"]
[Black "Vogel, Roven"]
[Result "0-1"]
[ECO "B51"]
[WhiteElo "2175"]
[BlackElo "2559"]
[Annotator "TA"]
[PlyCount "84"]
[EventDate "2024.09.16"]
[EventType "swiss"]
[EventCountry "GER"]
[SourceTitle "playchess.com"]
[Source "ChessBase"]
[SourceQuality "1"]
[TimeControl "40/5400+30:1800+30"]

{[%evp 9,84,8,9,8,24,13,33,30,21,38,19,19,25,23,23,27,12,27,29,18,31,36,36,20,54,26,38,37,25,34,88,54,84,0,0,-74,-70,-79,-69,144,-72,-88,-80,-209,-197,-244,-237,-242,-220,-213,-191,-204,-176,-312,-299,-299,-278,-368,-205,-210,-196,-556,-569,-762,-742,-935,-881,-911,-879,-1188,-908,-1173,-1025,-1292,-1235,-1312,-1317]} 1. e4 {[%emt 0:00:04]} c5 {[%emt 0:00:06]} 2. Nf3 {[%emt 0:00:09]} d6 {[%emt 0:00:07]} 3. Bb5+ {[%emt 0:00:37]} Nd7 {[%emt 0:00:09]} 4. a4 {[%emt 0:00:37]} Ngf6 {[%emt 0:00:09]} 5. Nc3 {[%emt 0:00:08]} a6 {[%emt 0:00:39]} 6. Be2 {[%emt 0:00:13]} b6 {[%emt 0:00:18]} 7. d4 {[%emt 0:00:54]} cxd4 {[%emt 0:00:07]} 8. Qxd4 {[%emt 0:00:06] White is slightly better.} Bb7 {[%emt 0:00:07]} 9. O-O {[%emt 0:00:36]} e6 {[%emt 0:00:39]} 10. Rd1 {[%emt 0:01:43]} Qc7 {[%emt 0:00:22]} 11. Be3 {[%emt 0:05:13]} Ng4 {[%emt 0:00:37]} 12. Bg5 {[%emt 0:00:36]} h6 {[%emt 0:01:27][%cal Bh7h6,Bh6h5,Bh5h4][%mdl 32]} 13. Bh4 {[%emt 0:00:22]} Nge5 {[%emt 0:02:15]} 14. h3 {[%emt 0:07:59]} g5 {[%emt 0:09:25][%cal Of8g7]} 15. Bg3 {[%emt 0:00:20]} Be7 {[%emt 0:02:22]} 16. Rd2 {[%emt 0:06:01]} h5 {[%emt 0:06:20]} 17. Rad1 {[%emt 0:02:11]} Nxf3+ {[%emt 0:11:35]} 18. Bxf3 {[%emt 0:06:39]} Ne5 {[%emt 0:00:35]} 19. Be2 {[%emt 0:06:06]} Rd8 {[%emt 0:03:22]} (19... h4 $14 20. Bh2 O-O-O) 20. Qe3 {[%emt 0:25:59]} h4 {[%emt 0:05:24]} 21. Bxe5 {[%emt 0:20:54]} ({Better is} 21. Bh2 $16) 21... dxe5 $11 {[%emt 0:00:08]} 22. Bb5+ {[%emt 0:11:51]} axb5 $17 {[%emt 0:02:29]} 23. Nxb5 {[%emt 0:00:20]} Qc6 {[%emt 0:02:01] [#] Threatens to win with ...Rxd2.} 24. Rxd8+ {[%emt 0:00:07]} Bxd8 {[%emt 0:00:06]} 25. Nd6+ {[%emt 0:01:08]} Kf8 {[%emt 0:00:26] And now ...Be7 would win.} (25... Ke7 $2 26. Qxg5+ Kd7 27. Nxf7+ $18 (27. Nxb7+ Kc8 $18) (27. Nxb7+ Kc8 $18)) 26. Qf3 {[%emt 0:00:47] This move loses the game for White.} (26. Nxb7 $17 Be7 27. a5 (27. Nd8 Qc7 $17) 27... Qxb7 28. axb6) 26... Qc7 $19 {[%emt 0:03:58]} 27. Nxf7 {[%emt 0:01:44]} (27. c4 $142 Kg7 28. Nb5) 27... Bxe4 {[%emt 0:00:18]} 28. Qxe4 {[%emt 0:00:34]} (28. Rxd8+ $2 {perishes.} Qxd8 29. Nxd8+ Bxf3 30. gxf3 Ke7 31. Nc6+ Kd6 $19) 28... Kxf7 {[%emt 0:00:18]} (28... Qxf7 $2 {loses.} 29. Rxd8+ Kg7 30. Qxe5+ Qf6 31. Qxf6+ Kxf6 32. Rxh8 $18) 29. Rd3 {[%emt 0:00:31]} Be7 {[%emt 0:08:08][%cal Of7g7]} (29... Qxc2 $2 {too greedy.} 30. Rf3+ Kg7 31. Qxc2 $18) 30. Rc3 {[%emt 0:00:13]} Qd6 {[%emt 0:00:23]} 31. Qf3+ {[%emt 0:00:38]} (31. Rd3 {is the only way for White.} Qc7 32. Rc3) 31... Kg7 {[%emt 0:00:33][%cal Oe5e4]} 32. Rc6 {[%emt 0:00:04]} Qd5 {[%emt 0:01:13]} 33. Rxb6 {[%emt 0:00:25]} Rf8 {[%emt 0:03:02]} (33... e4 $142 34. Qc3+ Bf6 35. Qc7+ Kg6) 34. Qxd5 {[%emt 0:00:48]} exd5 {[%emt 0:00:02][%mdl 4096] Endgame. KRB-KR} 35. b4 {[%emt 0:00:48] Against Bc5} (35. Rc6 {is tougher.}) 35... Rc8 {[%emt 0:01:36] Black is clearly winning.} 36. a5 {[%emt 0:00:02]} Rxc2 {[%emt 0:00:07]} 37. a6 {[%emt 0:00:05]} Ra2 {[%emt 0:01:37]} 38. Rb7 {[%emt 0:00:12]} Kf6 {[%emt 0:00:10] Hoping for ...Ra1+.} 39. a7 {[%emt 0:00:07]} Ra1+ {[%emt 0:01:12]} 40. Kh2 {[%emt 0:00:02]} d4 {[%emt 0:02:48] [#] Strongly threatening ...d3.} 41. b5 {[%emt 0:30:08]} Bc5 {[%emt 0:30:31][%cal Od4d3] ...d3! would now be deadly.} 42. b6 {[%emt 0:00:19]} d3 {[%emt 0:00:43] Weighted Error Value: White=0.52/Black=0.10 (very precise) .  Mistake:       	White=6     	Black=2      Inaccurate:     	White=3     	Black=1      OK:         	White=11    	Black=11     Best:        	White=2     	Black=5} 0-1

[Event "27th OIBM 2024"]
[Site "Gmund am Tegernsee"]
[Date "2024.10.27"]
[Round "2.7"]
[White "Stremavicius, Titas"]
[Black "Khrapko, Marharyta"]
[Result "1-0"]
[ECO "A49"]
[WhiteElo "2541"]
[BlackElo "2168"]
[Annotator "TA"]
[PlyCount "73"]
[EventDate "2024.09.16"]
[EventType "swiss"]
[EventCountry "GER"]
[SourceTitle "playchess.com"]
[Source "ChessBase"]
[SourceQuality "1"]
[TimeControl "40/5400+30:1800+30"]

{[%evp 19,73,52,58,40,53,12,10,12,41,41,29,31,39,22,22,14,18,4,15,10,37,0,54,60,65,56,82,47,66,37,55,36,54,29,44,42,65,0,0,0,0,0,0,0,88,58,233,221,429,419,1996,1862,3143,3168,6179,5338]} 1. d4 {[%emt 0:00:04]} Nf6 {[%emt 0:00:35]} 2. Nf3 {[%emt 0:00:13]} g6 {[%emt 0:01:58]} 3. g3 {[%emt 0:08:34]} Bg7 {[%emt 0:00:14]} 4. Bg2 {[%emt 0:00:06]} d6 {[%emt 0:00:46]} 5. O-O {[%emt 0:00:27]} O-O {[%emt 0:00:06]} 6. b3 {[%emt 0:00:11]} c5 {[%emt 0:03:20]} 7. Bb2 {[%emt 0:02:05]} Nc6 {[%emt 0:05:35]} 8. d5 {[%emt 0:11:05]} Nb4 {[%emt 0:01:00]} 9. c4 {[%emt 0:12:38]} b5 {[%emt 0:13:34]} 10. a3 {[%emt 0:00:15]} Na6 {[%emt 0:00:07]} 11. cxb5 {[%emt 0:00:30]} Nc7 {[%emt 0:00:01][%csl LRb5,LRd5]} 12. a4 {[%emt 0:01:09][%cal Ob3b4]} Bb7 {[%emt 0:10:22]} 13. Nfd2 {[%emt 0:01:33] Threatening e4. The position is equal.} Nfxd5 {[%emt 0:09:28]} 14. Bxg7 {[%emt 0:00:12]} Kxg7 {[%emt 0:00:02]} 15. Nc4 {[%emt 0:01:13] Strongly threatening Na5.} Rb8 {[%emt 0:00:42][%cal Ba8b8,Bb8b7,Bb7d7][%mdl 32]} 16. Nba3 {[%emt 0:11:19]} Nb4 {[%emt 0:03:59]} 17. Bxb7 {[%emt 0:03:04]} Rxb7 {[%emt 0:00:02]} 18. Nc2 {[%emt 0:03:05]} Nxc2 {[%emt 0:09:46]} 19. Qxc2 {[%emt 0:00:04]} Ne6 {[%emt 0:00:48][%cal Oa7a6,Bc7e6,Be6g7,Bg7e8,Be8f6,Bf6d7][%mdl 32]} 20. f4 {[%emt 0:00:35]} Kg8 {[%emt 0:12:04]} (20... a6 $11 21. bxa6 Nd4) 21. e3 $14 {[%emt 0:00:46][%cal Be2e3,Be3e4][%mdl 32]} Ng7 {[%emt 0:06:10]} 22. Rad1 {[%emt 0:03:52]} Rd7 {[%emt 0:07:58]} 23. g4 {[%emt 0:10:34] White is much more active.} f5 {[%emt 0:07:36]} 24. h3 {[%emt 0:00:52]} Ne8 {[%emt 0:00:08]} 25. gxf5 {[%emt 0:11:47]} Rxf5 {[%emt 0:01:27]} 26. e4 {[%emt 0:00:20]} Rh5 {[%emt 0:00:35]} 27. Rf3 {[%emt 0:03:42]} e6 {[%emt 0:00:58]} 28. Qf2 {[%emt 0:01:40]} (28. Rdd3 $14) 28... Nf6 $11 {[%emt 0:00:28]} 29. e5 {[%emt 0:04:21]} dxe5 {[%emt 0:01:12]} 30. Rxd7 {[%emt 0:00:03]} Nxd7 {[%emt 0:00:01]} 31. Qe3 {[%emt 0:03:54]} Qc7 {[%emt 0:03:17] [#]} (31... Rf5 $11 {remains equal.}) 32. Qe4 $1 $16 {[%emt 0:01:13] Qc6 would now be deadly.} Rf5 $2 {[%emt 0:00:34] [#] This move loses the game for Black.} ({Wrong is} 32... exf4 $2 33. Qxe6+ Kh8 34. Qe8+ Kg7 35. Qe7+ Kh6 36. Nd6 $18) ({Black should play} 32... Qd8 $14) 33. Qc6 $1 $18 {[%emt 0:00:26]} Qxc6 {[%emt 0:01:33]} (33... Qd8 34. Rd3 (34. Qxe6+ Kf8 $18) 34... Qh4 35. Rxd7 (35. Qxd7 Qe1+ 36. Kh2 Qe2+ 37. Kh1 Qf1+ 38. Kh2 Qxf4+ 39. Rg3 Qf2+ 40. Rg2 Qf4+ 41. Kh1 Qf1+ 42. Kh2 Qf4+ 43. Kg1 Qc1+ 44. Kh2 Qf4+ $11) (35. Qxe6+ Kh8 $11) 35... Qg3+ 36. Qg2 Qxf4) 34. bxc6 {[%emt 0:00:02]} Nb6 {[%emt 0:00:23]} (34... e4 $142) 35. Nxb6 {[%emt 0:00:33] White is clearly winning.} ({Weaker is} 35. Nxe5 Nd5 $16) 35... axb6 {[%emt 0:00:01]} 36. c7 {[%emt 0:00:18]} Rf8 {[%emt 0:00:02]} 37. Rd3 {[%emt 0:00:06] Weighted Error Value: White=0.10 (very precise) /Black=0.43.  Loses game:     	---       	Black=1      Mistake:       	White=1     	Black=4      Inaccurate:     	White=4     	Black=4      OK:         	White=7     	Black=5      Best:        	White=1     	Black=1      Strong:       	White=2     	---} ({Not} 37. fxe5 Rc8 $11) 1-0

[Event "27th OIBM 2024"]
[Site "Gmund am Tegernsee"]
[Date "2024.10.27"]
[Round "2.8"]
[White "Ciolek, Andreas"]
[Black "Amar, Elham"]
[Result "0-1"]
[ECO "E11"]
[WhiteElo "2173"]
[BlackElo "2540"]
[Annotator "TA"]
[PlyCount "140"]
[EventDate "2024.09.16"]
[EventType "swiss"]
[EventCountry "GER"]
[SourceTitle "playchess.com"]
[Source "ChessBase"]
[SourceQuality "1"]
[TimeControl "40/5400+30:1800+30"]

{[%evp 13,140,8,4,0,0,1,2,-4,-10,-5,-8,-8,0,-49,-40,-57,-59,-66,-56,-64,-23,-93,-100,-87,-12,-18,-19,-15,-24,-208,-208,-216,-215,-216,-218,-223,-213,-219,-208,-270,-246,-263,-273,-272,-261,-270,-261,-301,-240,-226,-64,-64,-64,-64,-64,-64,-64,-152,-145,-148,-143,-227,-150,-218,-193,-193,-199,-229,-229,-229,-216,-205,-193,-189,-183,-241,-193,-193,-193,-193,-193,-182,-44,-44,-44,-44,-44,-44,-44,-156,-156,-118,-44,-127,0,0,0,0,0,0,0,0,0,0,0,0,0,0,0,0,0,0,0,0,0,0,0,0,0,0,0,0,0,0,0,-24,-24,-29981,-29982]} 1. d4 {[%emt 0:00:03]} Nf6 {[%emt 0:02:22]} 2. c4 {[%emt 0:00:20]} e6 {[%emt 0:00:07]} 3. Nf3 {[%emt 0:00:10]} d5 {[%emt 0:00:10]} 4. g3 {[%emt 0:00:07]} Bb4+ {[%emt 0:00:17]} 5. Bd2 {[%emt 0:00:10]} Be7 {[%emt 0:00:07]} 6. Bg2 {[%emt 0:00:15]} O-O {[%emt 0:00:09]} 7. O-O {[%emt 0:00:06]} Nbd7 {[%emt 0:01:00]} 8. Bc3 {[%emt 0:00:27]} b6 {[%emt 0:00:41]} 9. cxd5 {[%emt 0:00:16]} exd5 {[%emt 0:00:10]} 10. Bd2 {[%emt 0:00:09] The position is equal.} Re8 {[%emt 0:00:26]} 11. Nc3 {[%emt 0:01:38]} Bb7 {[%emt 0:02:19]} 12. Bf4 {[%emt 0:01:26]} Nf8 {[%emt 0:00:08]} 13. Ne5 {[%emt 0:05:22]} (13. Rc1 $11 {feels stronger.}) 13... Ne6 $1 $15 {[%emt 0:02:44]} 14. Qa4 {[%emt 0:10:56]} Bd6 {[%emt 0:04:23]} 15. Nd3 {[%emt 0:14:51]} Nxf4 {[%emt 0:07:21]} 16. Nxf4 {[%emt 0:01:50]} c6 {[%emt 0:00:33]} 17. b4 {[%emt 0:01:16]} (17. e3 $11 {remains equal.}) 17... Bxf4 {[%emt 0:08:58]} 18. gxf4 {[%emt 0:00:12]} Ne4 {[%emt 0:00:04]} (18... Re6 $17 {White must now prevent ...Nh5.} 19. e3 Ne8) 19. Nxe4 $11 {[%emt 0:06:13]} dxe4 {[%emt 0:00:04]} 20. e3 {[%emt 0:00:17]} Re6 {[%emt 0:01:57]} 21. f3 $2 {[%emt 0:02:44]} (21. Qc2 $11 {and White has nothing to worry.}) 21... exf3 $19 {[%emt 0:05:28]} 22. Rxf3 {[%emt 0:07:25] [#]} c5 $1 {[%emt 0:00:22][%mdl 512]} 23. d5 {[%emt 0:20:31]} Bxd5 {[%emt 0:05:38]} (23... Qxd5 24. Rg3 Re4 25. Rd1 $16) 24. Rd1 {[%emt 0:02:24] And now bxc5 would win.} Rd6 $1 {[%emt 0:00:06]} 25. bxc5 {[%emt 0:01:28]} bxc5 {[%emt 0:00:03]} 26. Rxd5 {[%emt 0:03:55]} Rxd5 {[%emt 0:01:15]} 27. Rf1 {[%emt 0:00:10][%cal Oa4e4] [#]} Rd6 $1 {[%emt 0:06:38]} 28. Bxa8 {[%emt 0:00:42]} Qxa8 {[%emt 0:00:03][%mdl 4096] Endgame. KQR-KQR} 29. f5 {[%emt 0:03:14] Prevents Rg6+} h6 {[%emt 0:00:36]} 30. f6 {[%emt 0:01:24]} Qd8 {[%emt 0:00:44]} ({Don't play} 30... Rxf6 31. Rxf6 gxf6 32. Kf2 $19) 31. Qxa7 {[%emt 0:01:37]} Rxf6 $2 {[%emt 0:04:14]} ({And not} 31... gxf6 32. Qxc5 Rd5 33. Qc6 $11) (31... Qc8 $19 32. h3 g6 (32... gxf6 $2 33. Rf3 $19) (32... Rxf6 $2 33. Rxf6 gxf6 34. Qa3 $19)) 32. Rxf6 $15 {[%emt 0:00:38]} Qxf6 $19 {[%emt 0:00:02] KQ-KQ} 33. Qa8+ $1 {[%emt 0:04:02]} Kh7 {[%emt 0:00:01] Strongly threatening ...Qg6+.} 34. Qe4+ {[%emt 0:00:10]} g6 $1 {[%emt 0:00:03]} 35. Qc4 {[%emt 0:00:25]} (35. a4 $15) 35... Kg7 {[%emt 0:01:22]} 36. a4 {[%emt 0:02:16][%cal Og1g2]} Qe5 {[%emt 0:02:38]} 37. e4 {[%emt 0:00:40]} (37. Kf1 $17) 37... Qb2 {[%emt 0:00:55]} 38. Qxc5 {[%emt 0:03:55]} (38. Kf1 $17 {was necessary.}) 38... Qa1+ {[%emt 0:00:28]} 39. Kg2 {[%emt 0:00:50]} Qxa4 {[%emt 0:00:06]} 40. Qe5+ {[%emt 0:02:35]} Kh7 {[%emt 0:00:22]} 41. Qf4 {[%emt 0:10:04]} Qc2+ {[%emt 0:01:31]} 42. Kg3 {[%emt 0:01:42]} Qc3+ {[%emt 0:00:06]} 43. Kg2 {[%emt 0:00:40]} Kg7 {[%emt 0:00:53]} 44. e5 {[%emt 0:00:56]} (44. Qf2 $142) 44... Qc6+ {[%emt 0:00:02]} 45. Kg3 {[%emt 0:01:00]} g5 $1 {[%emt 0:00:46]} 46. Qd4 {[%emt 0:01:06]} Qe6 {[%emt 0:02:25]} 47. h4 {[%emt 0:01:55]} gxh4+ {[%emt 0:02:20]} (47... Kg6 $19 48. hxg5 hxg5 49. Qd3+ Qf5 50. Qd6+ Kg7) 48. Kxh4 $15 {[%emt 0:00:02]} Kg6 {[%emt 0:00:24]} 49. Qe4+ {[%emt 0:01:48]} Qf5 {[%emt 0:00:19]} 50. Qc6+ {[%emt 0:00:49]} Kh7 {[%emt 0:00:06]} 51. Qd5 {[%emt 0:03:26]} ({Better is} 51. Qc4 $15) 51... Qf4+ $17 {[%emt 0:00:29]} 52. Kh3 {[%emt 0:00:07] [#]} Kg6 {[%emt 0:00:59]} (52... h5 $1 $17 {aiming for ...Qg4+.} 53. Qd7 Kg7 (53... Qxe5 54. Qxf7+ Qg7 55. Qxg7+ Kxg7 56. Kh4 $11)) 53. Qd6+ {[%emt 0:03:52] [#]} (53. Qg2+ $15 Kh7 54. Qc2+ Kg7 55. Qg2+ Qg5 56. Qd5) 53... Kf5 {[%emt 0:00:59]} (53... Kg7 $1 $17 {( -> ...Qf5+)} 54. Qc5 Kg6) 54. Qd7+ $11 {[%emt 0:00:12]} Ke4 {[%emt 0:00:15]} 55. Qc6+ {[%emt 0:00:40]} Kd3 {[%emt 0:00:57]} 56. Qa6+ {[%emt 0:03:13]} Ke3 {[%emt 0:02:06]} 57. Qb6+ {[%emt 0:01:22]} Kf3 {[%emt 0:00:36][%csl Gf3][%cal Rf4g3]} 58. Qc6+ {[%emt 0:00:38]} Kf2 {[%emt 0:00:17][%csl Gf2][%cal Rf4g3]} (58... Qe4 $5 59. Qf6+ $8 Qf4 60. Qc6+ Kf2 61. Qc2+ Ke1 62. Qc3+ Kf1 $11) 59. Qc2+ {[%emt 0:00:29]} Ke1 {[%emt 0:00:13]} 60. Qb1+ {[%emt 0:01:06]} Ke2 {[%emt 0:00:37][%cal Of4c4]} 61. Qa2+ {[%emt 0:00:31]} Ke3 {[%emt 0:03:09]} 62. Qb3+ {[%emt 0:00:20]} Kd4 {[%emt 0:01:34]} 63. Qb6+ {[%emt 0:00:21]} Kc4 {[%emt 0:01:00]} 64. Qa6+ {[%emt 0:01:42]} Kb3 {[%emt 0:00:34]} 65. Qd3+ {[%emt 0:01:07]} Kb2 {[%emt 0:00:21]} 66. Qb5+ {[%emt 0:00:42]} Kc3 {[%emt 0:01:30]} 67. Qc6+ {[%emt 0:02:09]} Kd2 {[%emt 0:00:59]} 68. Qd5+ {[%emt 0:01:36]} Ke1 {[%emt 0:00:28] Hoping for ...Qf5+.} 69. Qa5+ {[%emt 0:00:26]} Qd2 {[%emt 0:00:33]} 70. Qa1+ $2 {[%emt 0:02:34][%mdl 8192]} (70. Qb6 $11) 70... Kf2 {[%emt 0:00:33] Weighted Error Value: White=0.25 (precise) /Black=0.22 (precise) .  Loses game:     	White=2     	---        Missed win:     	---       	Black=1      Mistake:       	White=8     	Black=4      Inaccurate:     	---       	Black=2      OK:         	White=21    	Black=21     Best:        	White=7     	Black=4      Strong:       	White=1     	Black=4      Brilliant:      	---       	Black=1} 0-1